fUST/lending_fUST_20250908
["ID","MTS","AMOUNT","RATE_DAILY","PERIOD"]
[384294479,1757322645648,-617.99,0.00014246,2]
[384294480,1757322645658,-151.0,0.00014246,2]
[384294481,1757322645667,-151.0,0.00014246,2]
[384294482,1757322645676,-151.0,0.00014246,2]
[384294483,1757322645685,-151.0,0.00014246,2]
[384294484,1757322645695,-480.0,0.00014246,2]
[384294485,1757322645705,-151.0,0.00014246,2]
[384294486,1757322645715,-198.962247,0.00014246,2]
[384294487,1757322645725,-480.0,0.00014246,2]
[384294488,1757322645734,-480.0,0.00014246,2]
[384294489,1757322645743,-480.0,0.00014246,2]
[384294490,1757322645753,-628.36,0.00014246,2]
[384294491,1757322645763,-480.0,0.00014246,2]
[384294492,1757322645772,-260.783474,0.00014246,2]
[384294493,1757322645781,-260.783474,0.00014246,2]
[384294494,1757322645791,-260.783474,0.00014246,2]
[384294495,1757322645801,-260.783474,0.00014246,2]
[384294497,1757322645811,-480.0,0.00014246,2]
[384294498,1757322645824,-480.0,0.00014246,2]
[384294499,1757322645833,-4428.8,0.00014246,2]
[384294500,1757322645843,-480.0,0.00014246,2]
[384294501,1757322645851,-480.0,0.00014246,2]
[384294502,1757322645861,-480.0,0.00014246,2]
[384294503,1757322645870,-480.0,0.00014246,2]
[384294504,1757322645880,-480.0,0.00014246,2]
[384294505,1757322645889,-480.0,0.00014246,2]
[384294506,1757322645900,-417.08,0.00014246,2]
[384294507,1757322645909,-277.148617,0.00014246,2]
[384294508,1757322645918,-719.18,0.00014246,2]
[384294509,1757322645927,-480.0,0.00014246,2]
[384294510,1757322645938,-1518.46,0.00014246,2]
[384294511,1757322645947,-480.0,0.00014246,2]
[384294512,1757322645957,-480.0,0.00014246,2]
[384294513,1757322645966,-572.95,0.00014246,2]
[384294514,1757322645976,-635.88,0.00014246,2]
[384294515,1757322645985,-480.0,0.00014246,2]
[384294516,1757322645995,-480.0,0.00014246,2]
[384294517,1757322646005,-480.0,0.00014246,2]
[384294518,1757322646014,-480.0,0.00014246,2]
[384294519,1757322646025,-480.0,0.00014246,2]
[384294520,1757322646034,-480.0,0.00014246,2]
[384294521,1757322646044,-480.0,0.00014246,2]
[384294522,1757322646053,-2763.61,0.00014246,2]
[384294523,1757322646063,-1543.98,0.00014246,2]
[384294524,1757322646073,-510.27,0.00014246,2]
[384294525,1757322646082,-480.0,0.00014246,2]
[384294526,1757322646093,-480.0,0.00014246,2]
[384294527,1757322646103,-162.628776,0.00014246,2]
[384294528,1757322646112,-162.628776,0.00014246,2]
[384294530,1757322646122,-162.628776,0.00014246,2]
[384294531,1757322646131,-162.628776,0.00014246,2]
[384294532,1757322646141,-151.0,0.00014246,2]
[384294533,1757322646151,-408.977251,0.00014246,2]
[384294534,1757322646161,-544.68,0.00014246,2]
[384294535,1757322646173,-408.977251,0.00014246,2]
[384294536,1757322646182,-408.977251,0.00014246,2]
[384294537,1757322646191,-151.0,0.00014246,2]
[384294538,1757322646201,-408.977251,0.00014246,2]
[384294539,1757322646213,-151.0,0.00014255,2]
[384294540,1757322646223,-158.133317,0.00014255,2]
[384294541,1757322646232,-151.0,0.00014255,2]
[384294542,1757322646242,-158.133317,0.00014255,2]
[384294543,1757322646251,-151.0,0.00014255,2]
[384294544,1757322646261,-158.133317,0.00014255,2]
[384294545,1757322646271,-158.133317,0.00014255,2]
[384294546,1757322646281,-151.0,0.00014255,2]
[384294547,1757322646293,-151.0,0.00014255,2]
[384294548,1757322646303,-204.347453,0.00014255,2]
[384294549,1757322646312,-204.347453,0.00014255,2]
[384294550,1757322646322,-204.347453,0.00014255,2]
[384294551,1757322646331,-204.347453,0.00014255,2]
[384294552,1757322646341,-160.992956,0.00014255,2]
[384294553,1757322646350,-160.992956,0.00014255,2]
[384294554,1757322646359,-160.992956,0.00014255,2]
[384294555,1757322646369,-151.0,0.00014255,2]
[384294556,1757322646379,-160.992956,0.00014255,2]
[384294557,1757322646388,-151.0,0.00014255,2]
[384294558,1757322646398,-151.0,0.00014255,2]
[384294559,1757322646407,-151.0,0.00014255,2]
[384294560,1757322646417,-176.44,0.0001426,2]
[384294561,1757322646426,-176.42,0.00014274,2]
[384294562,1757322646435,-500.0,0.00014283,2]
[384294563,1757322646445,-500.0,0.00014283,2]
[384294564,1757322646455,-517.54966943,0.00014283,2]
[384294565,1757322646464,-491.42334253,0.00014283,2]
[384294566,1757322646473,-486.9,0.00014283,2]
[384294567,1757322646482,-501.52711983,0.00014291,2]
[384294568,1757322646492,-500.0,0.00014294,2]
[384294569,1757322646501,-500.0,0.00014294,2]
[384294570,1757322646510,-500.0,0.00014294,2]
[384294571,1757322646519,-500.0,0.00014294,2]
[384294572,1757322646529,-501.9694036,0.00014294,2]
[384294573,1757322646538,-500.0,0.00014294,2]
[384294574,1757322646548,-500.0,0.00014294,2]
[384294575,1757322646557,-480.0,0.00014317,2]
[384294576,1757322646567,-480.0,0.00014317,2]
[384294577,1757322646579,-480.0,0.00014317,2]
[384294578,1757322646588,-480.0,0.00014317,2]
[384294579,1757322646597,-480.0,0.00014317,2]
[384294580,1757322646607,-480.0,0.00014317,2]
[384294581,1757322646616,-480.0,0.00014317,2]
[384294582,1757322646625,-151.0,0.00014318,2]
[384294583,1757322646635,-151.0,0.00014318,2]
[384294584,1757322646647,-151.0,0.00014319,2]
[384294585,1757322646656,-500.0,0.00014347,2]
[384294586,1757322646665,-448.1924999,0.00014347,2]
[384294587,1757322646675,-500.0,0.00014347,2]
[384294588,1757322646684,-480.0,0.0001452,2]
[384294589,1757322646695,-480.0,0.0001452,2]
[384294590,1757322646707,-209.68,0.0001452,2]
[384294591,1757322646717,-161.66,0.0001452,2]
[384294592,1757322646727,-485.42472001,0.0001452,2]
[384294593,1757322646737,-195.76,0.0001452,2]
[384294594,1757322646747,-480.0,0.0001452,2]
[384294595,1757322646756,-480.0,0.0001452,2]
[384294596,1757322646766,-480.0,0.0001452,2]
[384294597,1757322646775,-320.72,0.0001452,2]
[384294598,1757322646785,-814.15,0.0001452,2]
[384294599,1757322646794,-879.39,0.0001452,2]
[384294600,1757322646804,-1373.63,0.0001452,2]
[384294601,1757322646813,-694.5,0.0001452,2]
[384294602,1757322646823,-480.0,0.0001452,2]
[384294603,1757322646832,-617.99,0.0001452,2]
[384294604,1757322646842,-151.0,0.0001452,2]
[384294605,1757322646851,-151.0,0.0001452,2]
[384294606,1757322646862,-151.0,0.0001452,2]
[384294607,1757322646871,-233.92635043,0.0001452,2]
[384294608,1757322646880,-151.0,0.0001452,2]
[384294609,1757322646890,-480.0,0.0001452,2]
[384294610,1757322646900,-480.0,0.0001452,2]
[384294611,1757322646909,-480.0,0.0001452,2]
[384294612,1757322646919,-628.36,0.0001452,2]
[384294613,1757322646928,-480.0,0.0001452,2]
[384294614,1757322646938,-260.783474,0.0001452,2]
[384294615,1757322646947,-260.783474,0.0001452,2]
[384294616,1757322646957,-260.783474,0.0001452,2]
[384294617,1757322646969,-260.783474,0.0001452,2]
[384294618,1757322646979,-480.0,0.0001452,2]
[384294619,1757322646988,-4428.8,0.0001452,2]
[384294620,1757322646998,-480.0,0.0001452,2]
[384294621,1757322647008,-480.0,0.0001452,2]
[384294622,1757322647017,-480.0,0.0001452,2]
[384294623,1757322647027,-480.0,0.0001452,2]
[384294624,1757322647036,-480.0,0.0001452,2]
[384294625,1757322647046,-480.0,0.0001452,2]
[384294626,1757322647055,-719.18,0.0001452,2]
[384294627,1757322647064,-480.0,0.0001452,2]
[384294628,1757322647074,-1518.46,0.0001452,2]
[384294629,1757322647083,-480.0,0.0001452,2]
[384294630,1757322647092,-480.0,0.0001452,2]
[384294631,1757322647191,-572.95,0.0001452,2]
[384294632,1757322647202,-635.88,0.0001452,2]
[384294633,1757322647212,-480.0,0.0001452,2]
[384294634,1757322647222,-480.0,0.0001452,2]
[384294635,1757322647231,-480.0,0.0001452,2]
[384294636,1757322647240,-480.0,0.0001452,2]
[384294637,1757322647250,-480.0,0.0001452,2]
[384294638,1757322647259,-480.0,0.0001452,2]
[384294639,1757322647269,-2763.61,0.0001452,2]
[384294640,1757322647278,-1543.98,0.0001452,2]
[384294641,1757322647288,-510.27,0.0001452,2]
[384294642,1757322647297,-480.0,0.0001452,2]
[384294643,1757322647306,-480.0,0.0001452,2]
[384294644,1757322647316,-162.628776,0.0001452,2]
[384294645,1757322647326,-162.628776,0.0001452,2]
[384294646,1757322647336,-162.628776,0.0001452,2]
[384294647,1757322647345,-162.628776,0.0001452,2]
[384294648,1757322647355,-408.977251,0.0001452,2]
[384294649,1757322647364,-544.68,0.0001452,2]
[384294650,1757322647374,-408.977251,0.0001452,2]
[384294651,1757322647383,-408.977251,0.0001452,2]
[384294652,1757322647393,-408.977251,0.0001452,2]
[384294653,1757322647402,-485.04805454,0.00014521,2]
[384294654,1757322647411,-502.61682343,0.00014521,2]
[384294655,1757322647420,-1000.0,0.00014521,2]
[384294656,1757322647429,-501.78167114,0.00014521,2]
[384294657,1757322647439,-500.0,0.00014521,2]
[384294658,1757322647448,-500.0,0.00014521,2]
[384294659,1757322647457,-1000.0,0.00014521,2]
[384294660,1757322647467,-1000.0,0.00014521,2]
[384294661,1757322647477,-1000.0,0.00014521,2]
[384294662,1757322647486,-239.13686999,0.00014521,2]
[384294663,1757322647495,-1000.0,0.00014521,2]
[384294664,1757322647505,-409.0,0.00014538,2]
[384294665,1757322647514,-151.0,0.00014591,2]
[384294666,1757322647523,-151.0,0.00014591,2]
[384294667,1757322647533,-480.0,0.00014591,2]
[384294668,1757322647542,-370.25076326,0.00014591,2]
[384294669,1757322647551,-480.0,0.00014591,2]
[384294670,1757322647560,-480.0,0.00014591,2]
[384294671,1757322647571,-159.064248,0.00014591,2]
[384294672,1757322647580,-480.0,0.00014591,2]
[384294673,1757322647589,-151.0,0.00014591,2]
[384294674,1757322647599,-579.61188959,0.00014591,2]
[384294675,1757322647608,-1402.15611059,0.00014625,2]
[384294676,1757322647617,-316.29247482,0.00014736,2]
[384294677,1757322647626,-480.0,0.00014794,2]
[384294678,1757322647635,-402.77684515,0.00014794,2]
[384294679,1757322647644,-160.992956,0.00014794,2]
[384294680,1757322647653,-160.992956,0.00014794,2]
[384294681,1757322647662,-160.992956,0.00014794,2]
[384294682,1757322647671,-160.992956,0.00014794,2]
[384294683,1757322647680,-151.0,0.00014794,2]
[384294684,1757322647690,-151.0,0.00014794,2]
[384294685,1757322647699,-151.0,0.00014794,2]
[384294686,1757322647708,-480.0,0.00014794,2]
[384294687,1757322647717,-480.0,0.00014794,2]
[384294688,1757322647726,-814.15,0.00014794,2]
[384294689,1757322647736,-879.39,0.00014794,2]
[384294690,1757322647745,-1373.63,0.00014794,2]
[384294691,1757322647754,-694.5,0.00014794,2]
[384294692,1757322647765,-480.0,0.00014794,2]
[384294693,1757322647774,-617.99,0.00014794,2]
[384294694,1757322647783,-480.0,0.00014794,2]
[384294695,1757322647792,-480.0,0.00014794,2]
[384294696,1757322647801,-480.0,0.00014794,2]
[384294697,1757322647810,-628.36,0.00014794,2]
[384294698,1757322647821,-480.0,0.00014794,2]
[384294699,1757322647830,-325.54924188,0.00014794,2]
[384294700,1757322647839,-4428.8,0.00014794,2]
[384294701,1757322647848,-480.0,0.00014794,2]
[384294702,1757322647857,-583.416714,0.00014794,2]
[384294703,1757322647867,-480.0,0.00014794,2]
[384294704,1757322647876,-480.0,0.00014794,2]
[384294705,1757322647885,-406.71442908,0.00014794,2]
[384294706,1757322647895,-480.0,0.00014794,2]
[384294707,1757322647904,-719.18,0.00014794,2]
[384294708,1757322647913,-1518.46,0.00014794,2]
[384294709,1757322647922,-480.0,0.00014794,2]
[384294710,1757322647932,-480.0,0.00014794,2]
[384294711,1757322647941,-572.95,0.00014794,2]
[384294712,1757322647950,-635.88,0.00014794,2]
[384294713,1757322647959,-480.0,0.00014794,2]
[384294714,1757322647968,-154.47052933,0.00014794,2]
[384294715,1757322647976,-480.0,0.00014794,2]
[384294716,1757322647985,-480.0,0.00014794,2]
[384294717,1757322647994,-480.0,0.00014794,2]
[384294718,1757322648003,-2763.61,0.00014794,2]
[384294719,1757322648012,-1543.98,0.00014794,2]
[384294720,1757322648021,-510.27,0.00014794,2]
[384294721,1757322648030,-297.52,0.00014794,2]
[384294722,1757322648039,-480.0,0.00014794,2]
[384294723,1757322648048,-544.68,0.00014794,2]
[384294724,1757322648057,-1000.0,0.00014795,2]
[384294725,1757322648066,-151.0,0.00014795,2]
[384294726,1757322648077,-151.981614,0.00014795,2]
[384294727,1757322648090,-1000.0,0.00014831,2]
[384294728,1757322648104,-266.94472714,0.00014842,2]
[384294729,1757322648118,-1001.19960099,0.00014842,2]
[384294730,1757322648129,-1000.0,0.00014842,2]
[384294731,1757322648142,-501.49623136,0.00014842,2]
[384294732,1757322648154,-151.0,0.00014842,2]
[384294733,1757322648168,-158.133317,0.00014842,2]
[384294734,1757322648181,-158.133317,0.00014842,2]
[384294735,1757322648194,-151.0,0.00014842,2]
[384294736,1757322648208,-158.133317,0.00014842,2]
[384294737,1757322648222,-158.133317,0.00014842,2]
[384294738,1757322648233,-151.0,0.00014842,2]
[384294739,1757322648246,-154.027374,0.00014842,2]
[384294740,1757322648258,-204.347453,0.00014842,2]
[384294741,1757322648270,-204.347453,0.00014842,2]
[384294742,1757322648283,-204.347453,0.00014842,2]
[384294743,1757322648296,-204.347453,0.00014842,2]
[384294744,1757322648306,-480.0,0.00014865,2]
[384294745,1757322648318,-480.0,0.00014865,2]
[384294746,1757322648329,-480.0,0.00014865,2]
[384294747,1757322648341,-480.0,0.00014865,2]
[384294748,1757322648354,-1000.0,0.00014895,2]
[384294749,1757322648366,-151.0,0.00014903,2]
[384294750,1757322648380,-151.0,0.00014903,2]
[384294751,1757322648393,-300.810602,0.00014903,2]
[384294752,1757322648407,-260.783474,0.00014903,2]
[384294753,1757322648417,-260.783474,0.00014903,2]
[384294754,1757322648427,-260.783474,0.00014903,2]
[384294755,1757322648437,-260.783482,0.00014903,2]
[384294756,1757322648451,-283.0,0.00014938,2]
[384294757,1757322648464,-420.0,0.0001498,2]
[384294758,1757322648475,-283.0,0.00014983,2]
[384294759,1757322648488,-160.0,0.00015,2]
[384294760,1757322648500,-283.0,0.00015005,2]
[384294761,1757322648514,-283.0,0.0001502,2]
[384294762,1757322648525,-150.0,0.00015068,2]
[384294763,1757322648536,-383.65198951,0.00015068,2]
[384294764,1757322648548,-480.0,0.00015068,2]
[384294765,1757322648560,-480.0,0.00015068,2]
[384294766,1757322648575,-814.15,0.00015068,2]
[384294767,1757322648587,-879.39,0.00015068,2]
[384294768,1757322648598,-1373.63,0.00015068,2]
[384294769,1757322648610,-694.5,0.00015068,2]
[384294770,1757322648623,-480.0,0.00015068,2]
[384294771,1757322648635,-617.99,0.00015068,2]
[384294772,1757322648647,-480.0,0.00015068,2]
[384294773,1757322648659,-480.0,0.00015068,2]
[384294774,1757322648670,-436.63956542,0.00015068,2]
[384294775,1757322648682,-628.36,0.00015068,2]
[384294776,1757322648693,-480.0,0.00015068,2]
[384294777,1757322648705,-4428.8,0.00015068,2]
[384294778,1757322648717,-480.0,0.00015068,2]
[384294779,1757322648729,-480.0,0.00015068,2]
[384294780,1757322648741,-480.0,0.00015068,2]
[384294781,1757322648754,-480.0,0.00015068,2]
[384294782,1757322648766,-719.18,0.00015068,2]
[384294783,1757322648778,-1518.46,0.00015068,2]
[384294784,1757322648790,-480.0,0.00015068,2]
[384294785,1757322648801,-480.0,0.00015068,2]
[384294786,1757322648813,-635.88,0.00015068,2]
[384294787,1757322648824,-480.0,0.00015068,2]
[384294788,1757322648835,-578.13835114,0.00015068,2]
[384294789,1757322648847,-480.0,0.00015068,2]
[384294790,1757322648859,-480.0,0.00015068,2]
[384294791,1757322648871,-2763.61,0.00015068,2]
[384294792,1757322648883,-1543.98,0.00015068,2]
[384294793,1757322648895,-510.27,0.00015068,2]
[384294794,1757322648906,-609.32729653,0.00015068,2]
[384294795,1757322648918,-162.628776,0.00015068,2]
[384294796,1757322648931,-162.628776,0.00015068,2]
[384294797,1757322648943,-162.628776,0.00015068,2]
[384294798,1757322648955,-162.628776,0.00015068,2]
[384294799,1757322648967,-408.977251,0.00015068,2]
[384294800,1757322648980,-544.68,0.00015068,2]
[384294801,1757322648992,-408.977251,0.00015068,2]
[384294802,1757322649003,-408.977251,0.00015068,2]
[384294803,1757322649012,-408.977247,0.00015068,2]
[384294804,1757322649021,-1500.0,0.00015068,2]
[384294805,1757322649032,-1500.0,0.00015068,2]
[384294806,1757322649042,-1500.0,0.00015068,2]
[384294807,1757322649052,-1500.0,0.00015068,2]
[384294808,1757322649061,-1500.0,0.00015068,2]
[384294809,1757322649071,-870.836804,0.00015068,2]
[384294810,1757322649082,-283.0,0.0001507,2]
[384294811,1757322649093,-480.0,0.00015139,2]
[384294812,1757322649102,-160.992956,0.00015139,2]
[384294813,1757322649112,-160.992956,0.00015139,2]
[384294814,1757322649122,-160.992956,0.00015139,2]
[384294815,1757322649132,-160.992956,0.00015139,2]
[384294816,1757322649141,-156.967435,0.00015139,2]
[384294817,1757322649150,-480.0,0.00015139,2]
[384294818,1757322649160,-162.310329,0.00015139,2]
[384294819,1757322649169,-480.0,0.00015139,2]
[384294820,1757322649179,-480.0,0.00015139,2]
[384294821,1757322649355,-283.0,0.00015148,2]
[384294822,1757322649371,-151.0,0.000153,2]
[384294823,1757322649383,-151.0,0.000153,2]
[384294824,1757322649392,-151.0,0.00015315,2]
[384294825,1757322649402,-158.133317,0.00015315,2]
[384294826,1757322649411,-158.133317,0.00015315,2]
[384294827,1757322649420,-151.0,0.00015315,2]
[384294828,1757322649429,-158.133317,0.00015315,2]
[384294829,1757322649439,-158.133317,0.00015315,2]
[384294830,1757322649448,-151.0,0.00015315,2]
[384294831,1757322649458,-204.347453,0.00015315,2]
[384294832,1757322649467,-204.347453,0.00015315,2]
[384294833,1757322649477,-204.347453,0.00015315,2]
[384294834,1757322649486,-204.347453,0.00015315,2]
[384294835,1757322649496,-720.0,0.00015338,2]
[384294836,1757322649505,-480.0,0.00015342,2]
[384294837,1757322649515,-480.0,0.00015342,2]
[384294838,1757322649524,-814.15,0.00015342,2]
[384294839,1757322649533,-879.39,0.00015342,2]
[384294840,1757322649542,-1373.63,0.00015342,2]
[384294841,1757322649552,-694.5,0.00015342,2]
[384294842,1757322649564,-480.0,0.00015342,2]
[384294843,1757322649578,-617.99,0.00015342,2]
[384294844,1757322649589,-480.0,0.00015342,2]
[384294845,1757322649598,-480.0,0.00015342,2]
[384294846,1757322649607,-628.36,0.00015342,2]
[384294847,1757322649617,-480.0,0.00015342,2]
[384294848,1757322649626,-4428.8,0.00015342,2]
[384294849,1757322649637,-480.0,0.00015342,2]
[384294850,1757322649647,-480.0,0.00015342,2]
[384294851,1757322649657,-480.0,0.00015342,2]
[384294852,1757322649666,-480.0,0.00015342,2]
[384294853,1757322649677,-719.18,0.00015342,2]
[384294854,1757322649687,-1518.46,0.00015342,2]
[384294855,1757322649696,-480.0,0.00015342,2]
[384294856,1757322649706,-480.0,0.00015342,2]
[384294857,1757322649718,-635.88,0.00015342,2]
[384294858,1757322649727,-480.0,0.00015342,2]
[384294859,1757322649737,-480.0,0.00015342,2]
[384294860,1757322649746,-480.0,0.00015342,2]
[384294861,1757322649755,-2763.61,0.00015342,2]
[384294862,1757322649764,-1543.98,0.00015342,2]
[384294863,1757322649774,-510.27,0.00015342,2]
[384294864,1757322649783,-544.68,0.00015342,2]
[384294865,1757322649793,-283.0,0.00015363,2]
[384294866,1757322649803,-1500.0,0.00015379,2]
[384294867,1757322649812,-1500.0,0.0001539,2]
[384294868,1757322649822,-480.0,0.00015413,2]
[384294869,1757322649831,-480.0,0.00015413,2]
[384294870,1757322649841,-480.0,0.00015413,2]
[384294871,1757322649850,-480.0,0.00015413,2]
[384294872,1757322649859,-283.0,0.00015414,2]
[384294873,1757322649868,-283.0,0.00015509,2]
[384294874,1757322649878,-283.0,0.00015511,2]
[384294875,1757322649888,-160.992956,0.00015511,2]
[384294876,1757322649898,-160.992956,0.00015511,2]
[384294877,1757322649908,-160.992956,0.00015511,2]
[384294878,1757322649917,-160.992948,0.00015511,2]
[384294879,1757322649926,-283.0,0.00015513,2]
[384294880,1757322649935,-283.0,0.00015523,2]
[384294881,1757322649944,-283.0,0.00015549,2]
[384294882,1757322649954,-283.0,0.00015556,2]
[384294883,1757322649963,-283.0,0.00015565,2]
[384294884,1757322649972,-151.0,0.000156,2]
[384294885,1757322649981,-480.0,0.00015616,2]
[384294886,1757322649990,-480.0,0.00015616,2]
[384294887,1757322650000,-814.15,0.00015616,2]
[384294888,1757322650012,-879.39,0.00015616,2]
[384294889,1757322650022,-1373.63,0.00015616,2]
[384294890,1757322650031,-694.5,0.00015616,2]
[384294891,1757322650041,-480.0,0.00015616,2]
[384294892,1757322650050,-617.99,0.00015616,2]
[384294893,1757322650059,-480.0,0.00015616,2]
[384294894,1757322650068,-480.0,0.00015616,2]
[384294895,1757322650078,-628.36,0.00015616,2]
[384294896,1757322650087,-480.0,0.00015616,2]
[384294897,1757322650095,-4428.8,0.00015616,2]
[384294898,1757322650105,-480.0,0.00015616,2]
[384294899,1757322650114,-480.0,0.00015616,2]
[384294900,1757322650124,-480.0,0.00015616,2]
[384294901,1757322650133,-480.0,0.00015616,2]
[384294902,1757322650143,-719.18,0.00015616,2]
[384294903,1757322650152,-1518.46,0.00015616,2]
[384294904,1757322650162,-480.0,0.00015616,2]
[384294905,1757322650172,-410.9844104,0.00015616,2]
[384294906,1757322650181,-635.88,0.00015616,2]
[384294907,1757322650190,-480.0,0.00015616,2]
[384294908,1757322650199,-480.0,0.00015616,2]
[384294909,1757322650208,-619.02674994,0.00015616,2]
[384294910,1757322650218,-2763.61,0.00015616,2]
[384294911,1757322650227,-1543.98,0.00015616,2]
[384294912,1757322650236,-510.27,0.00015616,2]
[384294913,1757322650245,-544.68,0.00015616,2]
[384294914,1757322650255,-2000.0,0.00015616,2]
[384294915,1757322650263,-2000.0,0.00015616,2]
[384294916,1757322650273,-2000.0,0.00015616,2]
[384294917,1757322650282,-2000.0,0.00015616,2]
[384294918,1757322650291,-2000.0,0.00015616,2]
[384294919,1757322650301,-283.0,0.00015628,2]
[384294920,1757322650311,-480.0,0.00015687,2]
[384294921,1757322650320,-480.0,0.00015687,2]
[384294922,1757322650329,-480.0,0.00015687,2]
[384294923,1757322650338,-297.67429237,0.00015687,2]
[384294924,1757322650348,-151.0,0.000157,2]
[384294925,1757322650357,-283.0,0.00015745,2]
[384294926,1757322650366,-151.0,0.000158,2]
[384294927,1757322650376,-283.0,0.00015813,2]
[384294928,1757322650385,-283.0,0.00015818,2]
[384294929,1757322650395,-480.0,0.0001589,2]
[384294930,1757322650404,-480.0,0.0001589,2]
[384294931,1757322650413,-814.15,0.0001589,2]
[384294932,1757322650422,-879.39,0.0001589,2]
[384294933,1757322650431,-1373.63,0.0001589,2]
[384294934,1757322650441,-694.5,0.0001589,2]
[384294935,1757322650450,-480.0,0.0001589,2]
[384294936,1757322650459,-617.99,0.0001589,2]
[384294937,1757322650468,-480.0,0.0001589,2]
[384294938,1757322650477,-480.0,0.0001589,2]
[384294939,1757322650486,-628.36,0.0001589,2]
[384294940,1757322650495,-480.0,0.0001589,2]
[384294941,1757322650504,-4428.8,0.0001589,2]
[384294942,1757322650514,-480.0,0.0001589,2]
[384294943,1757322650523,-480.0,0.0001589,2]
[384294944,1757322650532,-480.0,0.0001589,2]
[384294945,1757322650542,-480.0,0.0001589,2]
[384294946,1757322650552,-719.18,0.0001589,2]
[384294947,1757322650561,-1518.46,0.0001589,2]
[384294948,1757322650574,-480.0,0.0001589,2]
[384294949,1757322650585,-635.88,0.0001589,2]
[384294950,1757322650595,-480.0,0.0001589,2]
[384294951,1757322650605,-480.0,0.0001589,2]
[384294952,1757322650618,-2763.61,0.0001589,2]
[384294953,1757322650627,-1543.98,0.0001589,2]
[384294954,1757322650636,-510.27,0.0001589,2]
[384294955,1757322650647,-544.68,0.0001589,2]
[384294956,1757322650656,-503.39821474,0.0001589,2]
[384294957,1757322650666,-151.0,0.00015899,2]
[384294958,1757322650675,-158.133317,0.00015899,2]
[384294959,1757322650684,-158.133317,0.00015899,2]
[384294960,1757322650694,-158.133317,0.00015899,2]
[384294961,1757322650703,-158.133321,0.00015899,2]
[384294962,1757322650712,-151.0,0.00015899,2]
[384294963,1757322650721,-204.347453,0.00015899,2]
[384294964,1757322650730,-204.347453,0.00015899,2]
[384294965,1757322650740,-204.347453,0.00015899,2]
[384294966,1757322650749,-204.347444,0.00015899,2]
[384294967,1757322650758,-2000.0,0.000159,2]
[384294968,1757322650767,-2000.0,0.00015927,2]
[384294969,1757322650777,-23168.29557677,0.00015935,2]
[384294970,1757322650786,-2000.0,0.00015938,2]
[384294971,1757322650795,-480.0,0.00015961,2]
[384294972,1757322650805,-480.0,0.00015961,2]
[384294973,1757322650815,-480.0,0.00015961,2]
[384294974,1757322650825,-166.282,0.00015962,2]
[384294975,1757322650834,-3000.0,0.00016,2]
[384294976,1757322650843,-3000.0,0.0001601,2]
[384294977,1757322650853,-3000.0,0.0001602,2]
[384294978,1757322650862,-283.0,0.00016021,2]
[384294979,1757322650873,-3000.0,0.0001603,2]
[384294980,1757322650882,-3000.0,0.0001604,2]